bitfinex/quotes_BTCUSD_20251215
["timestamp","ask_amount","ask_price","bid_price","bid_amount"]
[1765811504702,0.01137915,87880.0,87876.0,0.03514]
[1765811504881,0.2275895,87878.0,87877.0,0.02871153]
[1765811505081,0.01137889,87882.0,87879.0,0.01137928]
[1765811505333,1.66978687,87920.0,87879.0,0.01137928]
[1765811505334,0.01137591,87905.0,87900.0,0.01137656]
[1765811505486,0.22752249,87904.0,87900.0,0.00161287]
[1765811505690,0.03442,87924.0,87900.0,0.00161287]
[1765811505691,0.01137565,87907.0,87903.0,0.23889732]
[1765811505967,0.01137539,87909.0,87901.0,0.07055687]
[1765811506168,0.01137604,87904.0,87898.0,0.01137682]
[1765811506317,0.71337275,87911.0,87884.0,0.01137863]
[1765811506318,0.01137798,87889.0,87884.0,0.01137863]
[1765811506519,0.01137708,87896.0,87890.0,0.22755563]
[1765811506721,0.01137798,87889.0,87884.0,0.00161287]
[1765811506929,0.01137798,87889.0,87885.0,0.0113785]
[1765811507125,0.01137798,87889.0,87884.0,0.00161287]
[1765811507126,0.01137824,87887.0,87884.0,0.00161287]
[1765811507332,0.22756926,87886.0,87884.0,0.00161287]
[1765811507509,0.22756926,87886.0,87880.0,0.01868]
[1765811507510,0.2275801,87882.0,87880.0,0.01868]
[1765811507729,0.01137824,87887.0,87884.0,0.01137863]
[1765811507924,0.0113785,87885.0,87880.0,0.01868]
[1765811508167,0.0113785,87885.0,87871.0,0.06921]
[1765811508168,0.01138122,87864.0,87860.0,0.03514]
[1765811508327,0.01138109,87865.0,87861.0,0.00806679]
[1765811508526,0.01138109,87865.0,87854.0,0.02029287]
[1765811508527,0.22762852,87863.0,87854.0,0.02029287]
[1765811508792,0.22762852,87863.0,87826.0,0.2907]
[1765811508793,0.22768151,87842.0,87829.0,0.08059576]
[1765811508967,0.22768151,87842.0,87824.0,0.0465264]
[1765811509168,0.22768151,87842.0,87824.0,0.03514]
[1765811510083,0.22768151,87842.0,87820.0,0.01491]
[1765811510263,0.29997151,87842.0,87820.0,0.01491]
[1765811510470,0.29997151,87842.0,87824.0,0.0113864]
[1765811510672,0.29997151,87842.0,87821.0,0.01138679]
[1765811510868,0.6406899,87842.0,87814.0,0.0113877]
[1765811511070,0.6406899,87842.0,87810.0,0.03514]
[1765811511272,0.41300839,87842.0,87841.0,0.001]
[1765811511455,0.6406925,87842.0,87841.0,0.001]
[1765811511907,0.01138744,87816.0,87811.0,0.01138809]
[1765811512112,0.01138783,87813.0,87812.0,0.02979817]
[1765811512315,0.22774654,87817.0,87813.0,0.01138783]
[1765811512542,0.01138718,87818.0,87812.0,0.00161287]
[1765811512748,0.01138718,87818.0,87813.0,0.23914283]
[1765811512749,0.01138744,87816.0,87813.0,0.23914283]
[1765811512932,0.22775029,87816.0,87812.0,0.01300083]
[1765811513137,0.23913324,87818.0,87813.0,0.26910226]
[1765811513289,0.01138705,87819.0,87813.0,0.03157226]
[1765811513495,0.00151562,87818.0,87815.0,0.01138757]
[1765811513689,0.01138731,87817.0,87814.0,0.0113877]
[1765811513888,0.00151562,87818.0,87815.0,0.01138757]
[1765811514112,0.0129028,87818.0,87814.0,0.23914031]
[1765811514329,0.00151562,87818.0,87816.0,0.22774662]
[1765811514568,0.24064498,87819.0,87817.0,0.05378139]
[1765811514736,0.01138666,87822.0,87817.0,0.0651687]
[1765811514975,0.01138692,87820.0,87817.0,0.05378139]
[1765811515153,0.00151562,87819.0,87817.0,0.05378139]
[1765811515833,0.2292568,87819.0,87817.0,0.05378139]
[1765811516032,0.23913277,87818.0,87815.0,0.00161287]
[1765811516244,0.01138718,87818.0,87815.0,0.00161287]
[1765811516445,0.22926195,87817.0,87815.0,0.00161287]
[1765811516643,0.22774884,87817.0,87815.0,0.00161287]
[1765811516844,0.22770742,87833.0,87783.0,0.45566506]
[1765811516845,0.227806,87794.0,87792.0,0.03514]
[1765811517045,0.01138978,87798.0,87768.0,0.03514]
[1765811517046,0.22785085,87777.0,87770.0,0.08060341]
[1765811517301,0.01139302,87773.0,87768.0,0.04653367]
[1765811517447,0.01139328,87771.0,87768.0,0.04269301]
[1765811517664,0.01139328,87771.0,87761.0,0.02899646]
[1765811517665,0.01139393,87766.0,87761.0,0.02899646]
[1765811517858,0.01139458,87761.0,87753.0,0.01139562]
[1765811518065,0.23929961,87757.0,87753.0,0.23930649]
[1765811518271,0.01139497,87758.0,87754.0,0.01139549]
[1765811518475,0.23929628,87758.0,87755.0,0.05267737]
[1765811518683,0.01139575,87752.0,87744.0,0.11594679]
[1765811518882,0.227916,87752.0,87749.0,0.04814901]
[1765811519124,0.227916,87752.0,87744.0,0.10455]
[1765811519125,0.22793321,87745.0,87744.0,0.0002]
[1765811520535,0.30022321,87745.0,87744.0,0.0002]
[1765811520951,0.30022321,87745.0,87714.0,0.01864]
[1765811520952,0.01140081,87713.0,87703.0,0.01140211]
[1765811521183,0.01140081,87713.0,87683.0,0.01140471]
[1765811521184,0.01140367,87691.0,87683.0,0.01140471]
[1765811521371,0.01140367,87691.0,87650.0,0.71437274]
[1765811521372,0.26250137,87688.0,87672.0,0.01140615]
[1765811521587,0.24672137,87688.0,87676.0,0.01491]
[1765811521787,0.24672137,87688.0,87679.0,0.01140523]
[1765811521992,0.01864,87688.0,87679.0,0.23950892]
[1765811522195,0.00151562,87688.0,87678.0,0.01140536]
[1765811522404,0.01864,87688.0,87682.0,0.01140484]
[1765811522604,0.23948009,87690.0,87680.0,0.0114051]
[1765811522906,0.01864,87689.0,87687.0,0.22989627]
[1765811523104,0.01140211,87703.0,87695.0,0.22806317]
[1765811523303,0.01140224,87702.0,87697.0,0.23946086]
[1765811523528,0.01864,87704.0,87697.0,0.00161287]
[1765811523762,0.0114025,87700.0,87697.0,0.00161287]
[1765811523976,0.22805277,87699.0,87697.0,0.00161287]
[1765811524185,0.00151562,87698.0,87697.0,0.00161287]
[1765811524388,0.0114038,87690.0,87684.0,0.23949614]
[1765811524552,0.00151562,87689.0,87687.0,0.22828185]
[1765811524753,0.00151562,87691.0,87687.0,0.0002]
[1765811524952,0.23947691,87692.0,87687.0,0.0002]
[1765811525160,0.07085,87717.0,87697.0,0.22805797]
[1765811525375,0.25099999,87760.0,87697.0,0.00161287]
[1765811525376,0.0114025,87700.0,87697.0,0.00161287]
[1765811525616,0.22956839,87699.0,87697.0,0.00161287]
[1765811525797,0.22808137,87688.0,87687.0,0.0012]
[1765811526004,0.53746137,87688.0,87687.0,0.0002]
[1765811526179,0.0114068,87667.0,87661.0,0.01140758]
[1765811526377,0.13954839,87688.0,87655.0,0.01140836]
[1765811526378,0.01868,87674.0,87655.0,0.01140836]
[1765811526581,0.22818025,87651.0,87649.0,0.03675287]
[1765811526781,0.01140823,87656.0,87651.0,0.01140888]
[1765811527106,0.07085,87684.0,87668.0,0.01140667]
[1765811527398,0.07085,87684.0,87669.0,0.25208373]
[1765811527399,0.01140575,87675.0,87669.0,0.25208373]
[1765811527634,0.07085,87695.0,87669.0,0.25208373]
[1765811527635,0.07085,87704.0,87693.0,0.01140341]
[1765811527838,0.01140302,87696.0,87693.0,0.00161287]
[1765811528046,0.22806347,87695.0,87693.0,0.00161287]
[1765811528248,0.22806347,87695.0,87669.0,0.06897]
[1765811528249,0.01140641,87670.0,87665.0,0.01140706]
[1765811528422,0.01140667,87668.0,87662.0,0.01140745]
[1765811528599,0.01140784,87659.0,87656.0,0.01140823]
[1765811528817,0.01140732,87663.0,87657.0,0.04915598]
[1765811529207,0.22815877,87659.0,87657.0,0.05076885]
[1765811529447,0.01140732,87663.0,87658.0,0.01140797]
[1765811529640,0.23954759,87666.0,87659.0,0.01140784]
[1765811529813,0.23955101,87664.0,87659.0,0.24117549]
[1765811530048,0.23955101,87664.0,87661.0,0.01140758]
[1765811530049,0.00151562,87663.0,87661.0,0.01140758]
[1765811530216,0.2281282,87670.0,87661.0,0.01302045]
[1765811530396,0.01868,87667.0,87663.0,0.01140732]
[1765811530597,0.01140706,87665.0,87663.0,0.00161287]
[1765811530798,0.01140458,87684.0,87673.0,0.01140602]
[1765811530997,0.00151562,87683.0,87673.0,0.00161287]
[1765811531217,0.01140523,87679.0,87674.0,0.34261296]
[1765811531401,0.23951721,87677.0,87675.0,0.03670379]
[1765811531630,0.01140224,87702.0,87698.0,0.2394563]
[1765811531833,0.0114012,87710.0,87706.0,0.01140172]
[1765811531991,0.01140198,87704.0,87700.0,0.0114025]
[1765811532194,0.22805017,87700.0,87699.0,0.03412]
[1765811532578,0.07085,87735.0,87705.0,0.01140185]
[1765811532793,0.01140055,87715.0,87711.0,0.2280211]
[1765811532995,0.22803197,87707.0,87705.0,0.00161287]
[1765811533206,0.00151562,87714.0,87688.0,0.01140406]
[1765811533207,0.01140302,87696.0,87691.0,0.01140367]
[1765811533339,0.01140263,87699.0,87690.0,0.03412]
[1765811533340,0.01140185,87705.0,87699.0,0.01140263]
[1765811533543,0.01140471,87683.0,87677.0,0.08037549]
[1765811533780,0.01140471,87683.0,87680.0,0.00161287]
[1765811533989,0.01140549,87677.0,87671.0,0.01140628]
[1765811534185,0.01140549,87677.0,87672.0,0.03500081]
[1765811534186,0.22811689,87675.0,87672.0,0.03500081]
[1765811534387,0.07085,87704.0,87684.0,0.22808965]
[1765811534587,0.22808098,87689.0,87684.0,0.00161287]
[1765811534795,0.0114025,87700.0,87695.0,0.01140315]
[1765811535011,0.23946359,87696.0,87695.0,0.00161287]
[1765811535195,0.01140458,87684.0,87679.0,0.01871737]
[1765811535455,0.01140484,87682.0,87679.0,0.01140523]
[1765811535587,0.01140471,87683.0,87679.0,0.01140523]
[1765811535789,0.01292033,87683.0,87680.0,0.004]
[1765811535990,0.23949808,87684.0,87680.0,0.00561287]
[1765811536189,0.23949912,87684.0,87681.0,0.04732293]
[1765811536580,0.22809561,87683.0,87681.0,0.00161287]
[1765811536996,0.22809698,87682.0,87681.0,0.00161287]
[1765811537326,0.22812415,87672.0,87670.0,0.01696]
[1765811537543,0.2395361,87670.0,87666.0,0.01140693]
[1765811537751,0.01140575,87675.0,87669.0,0.22813063]
[1765811537947,0.22812631,87671.0,87669.0,0.00161287]
[1765811538350,0.00151562,87670.0,87669.0,0.00161287]
[1765811538603,0.01140771,87660.0,87655.0,0.23957324]
[1765811538852,0.01140732,87663.0,87660.0,0.22815341]
[1765811539095,0.0114081,87657.0,87653.0,0.01140862]
[1765811539274,0.23957613,87655.0,87653.0,0.00161287]
[1765811539561,0.2907,87679.0,87656.0,0.01140823]
[1765811539760,0.01140784,87659.0,87656.0,0.00161287]
[1765811540059,0.23956057,87661.0,87657.0,0.02360022]
[1765811540263,0.22814289,87665.0,87659.0,0.01140784]
[1765811540463,0.2395575,87662.0,87659.0,0.00161287]
[1765811540669,0.01868,87669.0,87660.0,0.01140771]
[1765811540877,0.01140471,87683.0,87673.0,0.01140602]
[1765811541033,0.1061,87695.0,87660.0,0.06897]
[1765811541034,0.01140367,87691.0,87683.0,0.01140471]
[1765811541233,0.0114025,87700.0,87692.0,0.01140354]
[1765811541432,0.0114025,87700.0,87696.0,0.01140302]
[1765811541637,0.01140211,87703.0,87699.0,0.03573287]
[1765811541831,0.00151562,87723.0,87699.0,0.03573287]
[1765811541832,0.01140198,87704.0,87699.0,0.03573287]
[1765811542055,0.22804918,87701.0,87699.0,0.00161287]
[1765811542255,0.22804849,87701.0,87699.0,0.00161287]
[1765811542483,0.01140185,87705.0,87699.0,0.00161287]
[1765811542484,0.01140094,87712.0,87709.0,0.01140133]
[1765811542721,0.00099999,87760.0,87720.0,0.0113999]
[1765811542722,0.07085,87747.0,87720.0,0.0113999]
[1765811542853,0.23937816,87728.0,87725.0,0.22798343]
[1765811543057,0.01139757,87738.0,87732.0,0.01139834]
[1765811543262,0.01139757,87738.0,87716.0,0.01868]
[1765811543263,0.01868,87763.0,87754.0,0.01139549]
[1765811543458,0.00099999,87790.0,87754.0,0.01139549]
[1765811543459,0.01139289,87774.0,87766.0,0.01139393]
[1765811543847,0.01139328,87771.0,87766.0,0.00161287]
[1765811543991,0.01139484,87759.0,87749.0,0.03412]
[1765811544195,0.22793061,87746.0,87741.0,0.03007718]
[1765811544397,0.23931226,87752.0,87746.0,0.01139653]
[1765811544752,0.23931226,87752.0,87746.0,0.00161287]
[1765811544753,0.22792542,87748.0,87746.0,0.00161287]
[1765811544951,0.22791503,87752.0,87751.0,0.00161287]
[1765811545182,0.2279376,87744.0,87742.0,0.01868]
[1765811545364,0.22794545,87741.0,87735.0,0.01139795]
[1765811545600,0.01139666,87745.0,87737.0,0.00161287]
[1765811545836,0.01139666,87745.0,87739.0,0.01139744]
[1765811546047,0.23934565,87740.0,87737.0,0.00161287]
[1765811546248,0.2393385,87742.0,87739.0,0.00161287]
[1765811546493,0.01139666,87745.0,87739.0,0.00161287]
[1765811546698,0.22794375,87741.0,87739.0,0.00161287]
[1765811546872,0.01139692,87743.0,87739.0,0.00161287]
[1765811547072,0.2279462,87740.0,87739.0,0.00161287]
[1765811547513,0.01139705,87742.0,87740.0,0.06897]
[1765811547733,0.2279462,87740.0,87739.0,0.00161287]
[1765811547977,0.23932905,87746.0,87742.0,0.01139705]
[1765811548202,0.22794315,87742.0,87740.0,0.00161287]
[1765811548627,0.22794315,87742.0,87740.0,0.07058287]
[1765811548841,0.22794315,87742.0,87740.0,0.00161287]
[1765811549076,0.01139692,87743.0,87741.0,0.06897]
[1765811549510,0.23933747,87743.0,87741.0,0.06897]
[1765811549929,0.03525,87766.0,87753.0,0.01139562]
[1765811550162,0.01864,87778.0,87759.0,0.03412]
[1765811550398,0.01139263,87776.0,87769.0,0.01139354]
[1765811550600,0.01139276,87775.0,87769.0,0.00161287]
[1765811550801,0.01139302,87773.0,87770.0,0.01139341]
[1765811551098,0.01139302,87773.0,87769.0,0.00161287]
[1765811551099,0.22789425,87760.0,87759.0,0.03412]
[1765811551327,0.01139484,87759.0,87755.0,0.01864]
[1765811551457,0.01139627,87748.0,87746.0,0.01864]
[1765811551680,0.2393231,87748.0,87746.0,0.01864]
[1765811551896,0.01139601,87750.0,87747.0,0.06873]
[1765811552095,0.22792282,87749.0,87747.0,0.07034287]
[1765811552460,0.22792282,87749.0,87740.0,0.22794488]
[1765811552461,0.2279488,87739.0,87738.0,0.01864]
[1765811552591,0.01139718,87741.0,87736.0,0.01139782]
[1765811552795,0.01139679,87744.0,87740.0,0.01139731]
[1765811553120,0.23933705,87743.0,87740.0,0.00161287]
[1765811553322,0.01864,87772.0,87743.0,0.22793841]
[1765811553649,0.22793581,87744.0,87743.0,0.00161287]
[1765811554131,0.22795399,87737.0,87736.0,0.002]
[1765811554365,0.23933792,87743.0,87736.0,0.0139694]
[1765811554568,0.01139705,87742.0,87736.0,0.02536722]
[1765811554709,0.01139692,87743.0,87736.0,0.02536722]
[1765811554710,0.01139692,87743.0,87736.0,0.0139694]
[1765811554908,0.22795298,87738.0,87736.0,0.0139694]
[1765811555343,0.22795298,87738.0,87736.0,0.00161287]
[1765811556584,0.48641528,87770.0,87747.0,0.0113964]
[1765811556706,0.22792499,87749.0,87747.0,0.00161287]
[1765811556905,0.2279527,87738.0,87736.0,0.002]
[1765811557472,0.29778221,87737.0,87700.0,0.0114025]
[1765811557690,0.01140146,87708.0,87702.0,0.01140224]
[1765811557981,0.01140133,87709.0,87703.0,0.0152163]
[1765811558178,0.23946303,87697.0,87685.0,0.06873]
[1765811558427,0.01140406,87688.0,87685.0,0.07034287]
[1765811558684,0.01140354,87692.0,87689.0,0.01140393]
[1765811558920,0.23947013,87694.0,87690.0,0.22807526]
[1765811559168,0.2394735,87693.0,87690.0,0.00161287]
[1765811559401,0.01140328,87694.0,87691.0,0.08013367]
[1765811559617,0.01140328,87694.0,87690.0,0.00161287]
[1765811559618,0.22807097,87692.0,87690.0,0.00161287]
[1765811560226,0.01140315,87695.0,87690.0,0.00161287]
[1765811560384,0.22807285,87692.0,87690.0,0.07034287]
[1765811560590,0.23947256,87693.0,87690.0,0.07034287]
[1765811560791,0.22807186,87692.0,87690.0,0.07334287]
[1765811560991,0.01140341,87693.0,87690.0,0.07334287]
[1765811560992,0.22806917,87693.0,87691.0,0.0780407]
[1765811561194,0.22807357,87691.0,87690.0,0.00461287]
[1765811561394,0.01140289,87697.0,87692.0,0.01140354]
[1765811561749,0.01140315,87695.0,87692.0,0.00161287]
[1765811562029,0.01140263,87699.0,87693.0,0.06873]
[1765811562194,0.01140302,87696.0,87694.0,0.03098218]
[1765811562510,0.00151562,87714.0,87697.0,0.23946005]
[1765811562744,0.00151562,87714.0,87697.0,0.01140289]
[1765811562976,0.00151562,87714.0,87699.0,0.01140263]
[1765811563181,0.00151562,87714.0,87698.0,0.03612]
[1765811563398,0.00151562,87714.0,87699.0,0.0860558]
[1765811563636,0.01140237,87701.0,87699.0,0.0860558]
[1765811563844,0.01140289,87697.0,87694.0,0.03098218]
[1765811564019,0.0114025,87700.0,87683.0,0.22809334]
[1765811564020,0.01140419,87687.0,87683.0,0.22809334]
[1765811564195,0.01140445,87685.0,87684.0,0.02805435]
[1765811564416,0.0114051,87680.0,87677.0,0.00161287]
[1765811564966,0.22810659,87679.0,87677.0,0.00161287]
[1765811565174,0.23949363,87685.0,87677.0,0.00161287]
[1765811565380,0.01140341,87693.0,87689.0,0.01140393]
[1765811565624,0.01140289,87697.0,87691.0,0.22807226]
[1765811565831,0.01140302,87696.0,87691.0,0.00161287]
[1765811566063,0.01140471,87683.0,87674.0,0.02281178]
[1765811566273,0.01140471,87683.0,87673.0,0.011]
[1765811566274,0.2281178,87674.0,87673.0,0.011]
[1765811566474,0.2281178,87674.0,87664.0,0.22814302]
[1765811566475,0.22813081,87669.0,87664.0,0.23955021]
[1765811566696,0.22813081,87669.0,87662.0,0.06873]
[1765811566939,0.22814402,87664.0,87661.0,0.22815088]
[1765811567180,0.01140706,87665.0,87661.0,0.01302045]
[1765811567388,0.23955387,87664.0,87662.0,0.00791884]
[1765811568032,0.23955387,87664.0,87649.0,0.03612]
[1765811568033,0.22817915,87651.0,87649.0,0.03612]
[1765811568255,0.01140875,87652.0,87641.0,0.0001]
[1765811568256,0.22819067,87646.0,87641.0,0.0001]
[1765811568692,0.23959599,87648.0,87641.0,0.0001]
[1765811568906,0.22818977,87647.0,87646.0,0.00607408]
[1765811569119,0.01140875,87652.0,87646.0,0.00607408]
[1765811569322,0.01140836,87655.0,87651.0,0.02240888]
[1765811569570,0.2281734,87653.0,87651.0,0.011]
[1765811569789,0.00151562,87669.0,87651.0,0.011]
[1765811569790,0.01140693,87666.0,87659.0,0.01140784]
[1765811569998,0.01140667,87668.0,87663.0,0.22814442]
[1765811570228,0.22814483,87664.0,87663.0,0.00161287]
[1765811570435,0.22812765,87671.0,87666.0,0.22813758]
[1765811570649,0.01140693,87666.0,87663.0,0.09704211]
[1765811570861,0.01140693,87666.0,87663.0,0.08175019]
[1765811571095,0.01140693,87666.0,87655.0,0.01140836]
[1765811571096,0.01140445,87685.0,87672.0,0.01140615]
[1765811571313,0.23953162,87672.0,87665.0,0.01301993]
[1765811571519,0.01140549,87677.0,87672.0,0.01301902]
[1765811571723,0.22811898,87674.0,87672.0,0.00161287]
[1765811571931,0.23952247,87675.0,87672.0,0.00161287]
[1765811572167,0.22812019,87674.0,87672.0,0.00161287]
[1765811573111,0.23951662,87677.0,87674.0,0.22811711]
[1765811573345,0.23951557,87677.0,87674.0,0.04806723]
[1765811573572,0.2281204,87673.0,87672.0,0.00161287]
[1765811573773,0.2281204,87673.0,87666.0,0.01140693]
[1765811573774,0.01140719,87664.0,87657.0,0.23956893]
[1765811573979,0.01140797,87658.0,87652.0,0.23958374]
[1765811574181,0.2907,87679.0,87658.0,0.01140797]
[1765811574182,0.01140745,87662.0,87658.0,0.01140797]
[1765811574384,0.01140732,87663.0,87658.0,0.00161287]
[1765811574581,0.22815455,87660.0,87658.0,0.01302084]
[1765811574785,0.22815455,87660.0,87658.0,0.00161287]
[1765811574996,0.22815455,87660.0,87659.0,0.00594124]
[1765811575333,0.22818807,87647.0,87645.0,0.0017]
[1765811575536,0.22818593,87648.0,87645.0,0.0017]
[1765811575739,0.22819067,87646.0,87645.0,0.0017]
[1765811577723,0.24683067,87646.0,87645.0,0.0017]
[1765811578852,0.24683067,87646.0,87645.0,0.0027]
[1765811579504,0.24683067,87646.0,87645.0,0.0017]
[1765811579742,0.41062384,87672.0,87645.0,0.00325602]
[1765811579950,0.22818617,87648.0,87646.0,0.02315548]
[1765811580160,0.22819067,87646.0,87645.0,0.00325602]
[1765811580367,0.01140927,87648.0,87645.0,0.00325602]
[1765811580593,0.01140901,87650.0,87647.0,0.04846]
[1765811580792,0.23959566,87648.0,87645.0,0.00164315]
[1765811581087,0.22819067,87646.0,87645.0,0.00164315]
[1765811581292,0.01864,87649.0,87648.0,0.23959219]
[1765811581565,0.01864,87649.0,87645.0,0.00164315]
[1765811581566,0.2281886,87647.0,87645.0,0.00164315]
[1765811581766,0.22970629,87646.0,87645.0,0.00164315]
[1765811581966,0.22819067,87646.0,87645.0,0.00164315]
[1765811582171,0.22819067,87646.0,87645.0,0.00264315]
[1765811582555,0.03446,87647.0,87645.0,0.00164315]
[1765811582756,0.00151562,87646.0,87645.0,0.00325602]
[1765811583111,0.00099999,87690.0,87645.0,0.00425602]
[1765811583112,0.01140927,87648.0,87645.0,0.00425602]
[1765811583285,0.26265067,87646.0,87645.0,0.00264315]
[1765811583494,0.30900067,87646.0,87645.0,0.00264315]
[1765811583793,0.3763643,87646.0,87645.0,0.00264315]
[1765811584201,0.03446,87646.0,87645.0,0.00264315]
[1765811584405,0.00151562,87646.0,87645.0,0.00264315]
[1765811584620,0.31725629,87646.0,87645.0,0.00264315]
[1765811584901,0.36209067,87646.0,87645.0,0.00164315]
[1765811585320,0.36209067,87646.0,87645.0,0.00264315]
[1765811585723,0.36209067,87646.0,87645.0,0.00164315]
[1765811585956,0.68416906,87646.0,87627.0,0.011412]
[1765811586156,0.00151562,87645.0,87628.0,0.0343]
[1765811586369,0.01864,87644.0,87642.0,0.01141005]
[1765811586594,0.03446,87647.0,87642.0,0.23961069]
[1765811586595,0.00151562,87643.0,87642.0,0.23961069]
[1765811586863,0.06891,87665.0,87657.0,0.0114081]
[1765811587084,0.03613,87676.0,87675.0,0.22811519]
[1765811587322,0.03613,87676.0,87670.0,0.01140641]
[1765811587323,0.01140602,87673.0,87669.0,0.01140654]
[1765811587524,0.22813449,87668.0,87664.0,0.01140719]
[1765811587688,0.01140667,87668.0,87664.0,0.01140719]
[1765811587889,0.23954124,87668.0,87664.0,0.01140719]
[1765811588091,0.01140667,87668.0,87664.0,0.22814345]
[1765811588294,0.06891,87667.0,87666.0,0.22813861]
[1765811588510,0.06891,87677.0,87674.0,0.01140589]
[1765811588721,0.01140211,87703.0,87696.0,0.01140302]
[1765811589036,0.01140211,87703.0,87676.0,0.04944287]
[1765811589037,0.01140328,87694.0,87681.0,0.01140497]
[1765811589189,0.01140328,87694.0,87680.0,0.01897]
[1765811589190,0.05775354,87692.0,87684.0,0.22809038]
[1765811589394,0.22809294,87684.0,87682.0,0.03269019]
[1765811589594,0.22961045,87683.0,87676.0,0.00161287]
[1765811589800,0.01140406,87688.0,87684.0,0.23949575]
[1765811589996,0.03004328,87694.0,87688.0,0.01140406]
[1765811590228,0.01864,87694.0,87692.0,0.22806936]
[1765811590395,0.01864,87694.0,87693.0,0.04919648]
[1765811590761,0.01864,87694.0,87688.0,0.00161287]
[1765811590762,0.22807716,87690.0,87688.0,0.00161287]
[1765811590895,0.00151562,87689.0,87688.0,0.00161287]
[1765811591834,0.00199998,87730.0,87694.0,0.01140328]
[1765811591835,0.01140263,87699.0,87694.0,0.01140328]
[1765811591988,0.01864,87706.0,87688.0,0.00161287]
[1765811591989,0.23947804,87691.0,87688.0,0.00161287]
[1765811592188,0.01140354,87692.0,87686.0,0.01140432]
[1765811592497,0.01140354,87692.0,87680.0,0.23950728]
[1765811592691,0.01140354,87692.0,87682.0,0.01140484]
[1765811592896,0.01140185,87705.0,87699.0,0.01140263]
[1765811593109,0.22802401,87711.0,87708.0,0.22802897]
[1765811593318,0.01140198,87704.0,87701.0,0.01140237]
[1765811593554,0.03446,87721.0,87712.0,0.01140094]
[1765811593734,0.01139938,87724.0,87715.0,0.01140055]
[1765811593947,0.06891,87735.0,87703.0,0.08374287]
[1765811593948,0.01140107,87711.0,87706.0,0.01140172]
[1765811594100,0.01139964,87722.0,87712.0,0.23941848]
[1765811594303,0.01140068,87714.0,87711.0,0.01140107]
[1765811594502,0.23942096,87712.0,87707.0,0.23754588]
[1765811594769,0.00151562,87711.0,87709.0,0.22802598]
[1765811595055,0.00151562,87712.0,87690.0,0.23947807]
[1765811595202,0.2907,87719.0,87691.0,0.2280727]
[1765811595403,0.05001839,87717.0,87692.0,0.04976019]
[1765811595612,0.05001839,87709.0,87678.0,0.01140536]
[1765811595813,0.03446,87692.0,87679.0,0.01140523]
[1765811596023,0.22809153,87685.0,87679.0,0.2395092]
[1765811596249,0.03446,87692.0,87678.0,0.00161287]
[1765811596250,0.23950632,87681.0,87678.0,0.00161287]
[1765811596456,0.22810218,87680.0,87678.0,0.00161287]
[1765811596988,0.22816085,87658.0,87653.0,0.23957885]
[1765811597146,0.22967954,87657.0,87650.0,0.01023]
[1765811597345,0.03446,87664.0,87656.0,0.01140823]
[1765811597562,0.22814642,87663.0,87661.0,0.01140758]
[1765811597792,0.01140719,87664.0,87661.0,0.00161287]
[1765811597971,0.00151562,87666.0,87664.0,0.22814199]
[1765811598173,0.0186,87674.0,87661.0,0.01302045]
[1765811598174,0.2907,87687.0,87681.0,0.01140497]
[1765811598432,0.05829663,87714.0,87678.0,0.01140536]
[1765811598433,0.0289926,87715.0,87698.0,0.2280542]
[1765811598644,0.00151562,87714.0,87698.0,0.00161287]
[1765811598852,0.00151562,87714.0,87698.0,0.01140276]
[1765811599074,0.00151562,87714.0,87687.0,0.0186]
[1765811599075,0.00151562,87714.0,87692.0,0.22806982]
[1765811599298,0.00151562,87714.0,87687.0,0.0866]
[1765811599299,0.23946815,87695.0,87693.0,0.05427512]
[1765811599519,0.22807877,87689.0,87687.0,0.00161287]
[1765811599880,0.23948,87690.0,87687.0,0.00161287]
[1765811600109,0.01140315,87695.0,87687.0,0.00161287]
[1765811600321,0.23948134,87690.0,87687.0,0.00161287]
[1765811600533,0.00151562,87689.0,87687.0,0.00161287]
[1765811600745,0.00151562,87689.0,87687.0,0.22969565]
[1765811600955,0.02011562,87702.0,87695.0,0.01140315]
[1765811601166,0.0979026,87733.0,87707.0,0.01140159]
[1765811601393,0.0114025,87700.0,87695.0,0.01140315]
[1765811601586,0.0114012,87710.0,87701.0,0.01140237]
[1765811601587,0.00151562,87709.0,87701.0,0.01140237]
[1765811601802,0.01140094,87712.0,87708.0,0.23942955]
[1765811602009,0.2394444,87704.0,87701.0,0.00161287]
[1765811602220,0.2394444,87704.0,87689.0,0.0343]
[1765811602221,0.23946763,87695.0,87691.0,0.01140367]
[1765811602442,0.24098648,87694.0,87692.0,0.03759908]
[1765811602654,0.00151562,87693.0,87687.0,0.001]
[1765811603074,0.02011562,87707.0,87699.0,0.01140263]
[1765811603296,0.10337,87722.0,87703.0,0.22804099]
[1765811603297,0.00151562,87720.0,87703.0,0.22804099]
[1765811603521,0.01140016,87718.0,87713.0,0.01140081]
[1765811604036,0.22801509,87714.0,87710.0,0.23942277]
[1765811604264,0.23941577,87714.0,87711.0,0.05130672]
[1765811604483,0.22802157,87711.0,87710.0,0.00161287]
[1765811604917,0.2907,87729.0,87705.0,0.23943902]
[1765811605132,0.00151562,87719.0,87708.0,0.01140146]
[1765811606986,0.00151562,87707.0,87687.0,0.00161287]
[1765811607188,0.78363733,87720.0,87700.0,0.0114025]
[1765811607189,0.71472733,87720.0,87700.0,0.0114025]
[1765811607437,0.31081562,87719.0,87705.0,0.011]
[1765811607707,0.31081562,87719.0,87706.0,0.001]
[1765811607708,0.37821,87719.0,87706.0,0.001]
[1765811607859,0.01140146,87708.0,87706.0,0.001]
[1765811608073,0.01140224,87702.0,87695.0,0.22806116]
[1765811608275,0.23948012,87690.0,87687.0,0.24169587]
[1765811608474,0.23947821,87691.0,87688.0,0.23948478]
[1765811608683,0.23947821,87691.0,87689.0,0.07434874]
[1765811608898,0.01140354,87692.0,87689.0,0.07434874]
[1765811609121,0.00151562,87698.0,87689.0,0.00161287]
[1765811609328,0.00151562,87706.0,87689.0,0.00161287]
[1765811609660,0.00151562,87706.0,87684.0,0.22809122]
[1765811609661,0.00151562,87706.0,87681.0,0.01023]
[1765811609662,0.71472733,87700.0,87681.0,0.01023]
[1765811609868,0.07042562,87706.0,87663.0,0.01709577]
[1765811609869,0.22811575,87675.0,87667.0,0.0114068]
[1765811610109,0.22811414,87676.0,87672.0,0.01140615]
[1765811610325,0.22811414,87676.0,87672.0,0.23952808]
[1765811610526,0.22811582,87675.0,87673.0,0.04806718]
[1765811610724,0.22811654,87675.0,87673.0,0.04968005]
[1765811610926,0.01140562,87676.0,87668.0,0.23953879]
[1765811610927,0.01140602,87673.0,87668.0,0.23953879]
[1765811611223,0.01140562,87676.0,87670.0,0.23953378]
[1765811611457,0.01140562,87676.0,87668.0,0.01301954]
[1765811611663,0.00151562,87689.0,87673.0,0.01140602]
[1765811611855,0.002,87675.0,87673.0,0.25052492]
[1765811611994,0.002,87675.0,87673.0,0.011]
[1765811612198,0.002,87675.0,87672.0,0.001]
[1765811612199,0.2281204,87673.0,87672.0,0.001]
[1765811612417,0.2281178,87674.0,87672.0,0.001]